fUSD/lending_fUSD_20240822
["ID","MTS","AMOUNT","RATE_DAILY","PERIOD"]
[335561169,1724331032551,-1189.0,0.000106,2]
[335561171,1724331032562,-150.0,0.00010601,2]
[335561173,1724331032571,-150.0,0.00010603,2]
[335561175,1724331032579,-256.41440406,0.00010613,2]
[335561177,1724331032591,-150.0,0.00010632,2]
[335561179,1724331032600,-150.0,0.00010635,2]
[335561181,1724331032609,-150.0,0.00010667,2]
[335561183,1724331032618,-2500.0,0.0001068,2]
[335561185,1724331032627,-150.0,0.0001068,2]
[335561187,1724331032636,-150.0,0.0001069,2]
[335561188,1724331032645,-874.5562,0.0001069,2]
[335561189,1724331032655,-576.5618,0.0001069,2]
[335561190,1724331032664,-188.74643273,0.00010699,2]
[335561191,1724331032675,-47.59781709,0.00010699,2]
[335561192,1724331032685,-315.0054842,0.00010699,2]
[335561193,1724331032694,-544.34812415,0.000107,2]
[335561194,1724331032707,-700.0,0.000107,2]
[335561195,1724331033751,-767.24187585,0.000107,2]
[335561196,1724331033761,-200.0,0.000107,3]
[335561197,1724331033771,-150.0,0.00010715,2]
[335561198,1724331033781,-150.0,0.00010743,2]
[335561199,1724331033791,-200.0,0.00010773,2]
[335561200,1724331033800,-500.0,0.00010789,2]
[335561201,1724331033810,-264.11309719,0.00010789,2]
[335561202,1724331033820,-284.65140432,0.00010789,2]
[335561203,1724331033829,-500.0,0.00010789,2]
[335561204,1724331033838,-500.0,0.00010789,2]
[335561205,1724331033847,-500.0,0.00010789,2]
[335561206,1724331033858,-500.0,0.00010789,2]
[335561207,1724331033867,-500.0,0.00010789,2]
[335561208,1724331033877,-5052.97211457,0.0001079,3]
[335561209,1724331033892,-527.3940004,0.0001079,3]
[335561210,1724331033904,-577.5783648,0.0001079,3]
[335561211,1724331033916,-2331.32555382,0.0001079,3]
[335561212,1724331033928,-2103.78615203,0.0001079,3]
[335561213,1724331033939,-424.51363552,0.0001079,3]
[335561214,1724331033951,-9071.77777833,0.0001079,3]
[335561216,1724331038250,-203.06755488,9.943e-05,2]
[335561218,1724331038261,-10000.0,0.00010327,2]
[335561220,1724331038271,-28268.39316759,0.0001079,3]
[335561221,1724331038283,-506.89261799,0.0001079,3]
[335561222,1724331038295,-702.12138426,0.0001079,3]
[335561223,1724331038320,-879.14563992,0.0001079,3]
[335561224,1724331038331,-1617.50813888,0.0001079,3]
[335561225,1724331038368,-1197.23178563,0.0001079,3]
[335561226,1724331038380,-2646.2132724,0.0001079,3]
[335561227,1724331038392,-3816.08831386,0.0001079,3]
[335561228,1724331038425,-179171.90024112,0.0001079,3]
[335561229,1724331038434,-162.86951245,0.0001079,2]
[335561230,1724331038444,-200.0,0.0001079,2]
[335561231,1724331038455,-9989.72301785,0.0001079,2]
[335561232,1724331038464,-5247.292712,0.00010792,2]
[335561233,1724331038473,-7206.0214973,0.00010793,2]
[335561234,1724331038482,-160.30138954,0.00010796,2]
[335561235,1724331038492,-500.0,0.00010797,2]
[335561236,1724331038502,-500.0,0.00010797,2]
[335561237,1724331038511,-1282.41111632,0.00010797,2]
[335561238,1724331038519,-500.0,0.00010798,2]
[335561239,1724331038529,-383.1509744,0.00010798,2]
[335561240,1724331038538,-500.0,0.00010798,2]
[335561242,1724331038547,-500.0,0.00010798,2]
[335561243,1724331038556,-487.3,0.00010798,2]
[335561245,1724331038565,-500.0,0.00010798,2]
[335561246,1724331038574,-500.0,0.00010798,2]
[335561247,1724331038583,-500.0,0.00010798,2]
[335561248,1724331038592,-500.0,0.00010798,2]
[335561249,1724331038600,-500.0,0.00010798,2]
[335561250,1724331038610,-500.0,0.00010798,2]
[335561251,1724331038619,-500.0,0.00010798,2]
[335561252,1724331038629,-500.0,0.00010798,2]
[335561253,1724331038639,-500.0,0.00010798,2]
[335561254,1724331038648,-487.66147867,0.00010798,2]
[335561255,1724331038658,-832.80346319,0.00010798,2]
[335561256,1724331038668,-522.441553,0.00010798,2]
[335561257,1724331038677,-500.0,0.00010798,2]
[335561259,1724331038686,-500.0,0.00010798,2]
[335561260,1724331038694,-500.0,0.00010798,2]
[335561261,1724331038704,-500.0,0.00010798,2]
[335561262,1724331038713,-500.0,0.00010798,2]
[335561263,1724331038722,-500.0,0.00010798,2]
[335561264,1724331038731,-500.0,0.00010798,2]
[335561265,1724331038740,-500.0,0.00010798,2]
[335561266,1724331038750,-158.15,0.00010798,2]
[335561267,1724331038759,-4444.25,0.00010798,2]
[335561268,1724331038769,-4444.25,0.00010798,2]
[335561269,1724331038777,-4444.25,0.00010798,2]
[335561270,1724331038787,-162.945739,0.00010798,2]
[335561271,1724331038795,-500.0,0.00010798,2]
[335561272,1724331038805,-500.0,0.00010798,2]
[335561273,1724331038814,-518.81586062,0.00010798,2]
[335561274,1724331038824,-500.0,0.00010798,2]
[335561275,1724331038834,-461.95934273,0.00010798,2]
[335561276,1724331038842,-600.1987,0.00010798,2]
[335561277,1724331038852,-500.0,0.00010798,2]
[335561278,1724331038862,-500.0,0.00010798,2]
[335561279,1724331038871,-500.0,0.00010798,2]
[335561280,1724331038880,-500.0,0.00010798,2]
[335561281,1724331038889,-500.0,0.00010798,2]
[335561282,1724331038898,-208.4969851,0.00010798,2]
[335561283,1724331038909,-528.55373758,0.00010798,2]
[335561284,1724331038918,-573.0,0.00010799,2]
[335561285,1724331038927,-174.56078176,0.00010799,2]
[335561286,1724331038936,-496.17332544,0.00010799,2]
[335561287,1724331038945,-500.0,0.00010799,2]
[335561288,1724331038954,-500.0,0.00010799,2]
[335561289,1724331038963,-500.0,0.00010799,2]
[335561290,1724331038972,-500.0,0.00010799,2]
[335561291,1724331038981,-500.0,0.00010799,2]
[335561292,1724331038990,-500.0,0.00010799,2]
[335561293,1724331038999,-500.0,0.00010799,2]
[335561294,1724331039008,-500.0,0.00010799,2]
[335561295,1724331039017,-500.0,0.00010799,2]
[335561296,1724331039026,-500.0,0.00010799,2]
[335561297,1724331039035,-500.0,0.00010799,2]
[335561298,1724331039044,-500.0,0.00010799,2]
[335561299,1724331039053,-500.0,0.00010799,2]
[335561300,1724331039062,-500.0934442,0.00010799,2]
[335561301,1724331039071,-500.0,0.00010799,2]
[335561302,1724331039080,-500.0,0.00010799,2]
[335561303,1724331039089,-500.0,0.00010799,2]
[335561304,1724331039098,-500.0,0.00010799,2]
[335561305,1724331039107,-500.0,0.00010799,2]
[335561306,1724331039116,-500.0,0.00010799,2]
[335561307,1724331039125,-500.0,0.00010799,2]
[335561308,1724331039134,-500.0,0.00010799,2]
[335561309,1724331039143,-500.0,0.00010799,2]
[335561310,1724331039152,-500.0,0.00010799,2]
[335561311,1724331039161,-500.0,0.00010799,2]
[335561312,1724331039170,-500.0,0.00010799,2]
[335561313,1724331039179,-500.0,0.00010799,2]
[335561314,1724331039188,-500.0,0.00010799,2]
[335561315,1724331039197,-500.0,0.00010799,2]
[335561316,1724331039207,-500.0,0.00010799,2]
[335561317,1724331039216,-500.0,0.00010799,2]
[335561318,1724331039225,-501.65430999,0.00010799,2]
[335561319,1724331039234,-500.0,0.00010799,2]
[335561320,1724331039243,-500.0,0.00010799,2]
[335561321,1724331039253,-292.46,0.00010799,2]
[335561322,1724331039262,-500.0,0.00010799,2]
[335561323,1724331039270,-500.0,0.00010799,2]
[335561324,1724331039279,-521.22946099,0.00010799,2]
[335561325,1724331039288,-500.0,0.00010799,2]
[335561326,1724331039302,-500.0,0.00010799,2]
[335561327,1724331039311,-500.0,0.00010799,2]
[335561328,1724331039319,-500.0,0.00010799,2]
[335561329,1724331039328,-500.0,0.00010799,2]
[335561330,1724331039337,-500.0,0.00010799,2]
[335561331,1724331039347,-500.0,0.00010799,2]
[335561332,1724331039356,-500.0,0.00010799,2]
[335561333,1724331039365,-500.0,0.00010799,2]
[335561334,1724331039375,-500.0,0.00010799,2]
[335561335,1724331039385,-500.0,0.00010799,2]
[335561336,1724331039394,-500.0,0.00010799,2]
[335561337,1724331039404,-500.0,0.00010799,2]
[335561338,1724331039413,-500.0,0.00010799,2]
[335561339,1724331039423,-500.0,0.00010799,2]
[335561340,1724331039432,-500.0,0.00010799,2]
[335561341,1724331039442,-500.0,0.00010799,2]
[335561342,1724331039451,-500.0,0.00010799,2]
[335561343,1724331039600,-500.0,0.00010799,2]
[335561344,1724331039613,-500.0,0.00010799,2]
[335561345,1724331039623,-500.0,0.00010799,2]
[335561346,1724331039632,-500.0,0.00010799,2]
[335561347,1724331039642,-500.0,0.00010799,2]
[335561348,1724331039652,-205.24779344,0.00010799,2]
[335561349,1724331039661,-500.0,0.00010799,2]
[335561350,1724331039670,-500.0,0.00010799,2]
[335561351,1724331039679,-500.0,0.00010799,2]
[335561352,1724331039687,-500.0,0.00010799,2]
[335561353,1724331039697,-500.0,0.00010799,2]
[335561354,1724331039706,-500.0,0.00010799,2]
[335561355,1724331039716,-500.0,0.00010799,2]
[335561356,1724331039725,-500.0,0.00010799,2]
[335561357,1724331039734,-500.0,0.00010799,2]
[335561358,1724331039743,-500.0,0.00010799,2]
[335561359,1724331039751,-500.0,0.00010799,2]
[335561360,1724331039761,-500.0,0.00010799,2]
[335561361,1724331039770,-500.0,0.00010799,2]
[335561362,1724331039779,-500.0,0.00010799,2]
[335561363,1724331039789,-500.0,0.00010799,2]
[335561364,1724331039798,-500.0,0.00010799,2]
[335561365,1724331039807,-500.0,0.00010799,2]
[335561366,1724331039817,-500.0,0.00010799,2]
[335561367,1724331039825,-500.0,0.00010799,2]
[335561368,1724331039834,-500.0,0.00010799,2]
[335561369,1724331039843,-500.0,0.00010799,2]
[335561370,1724331039853,-500.0,0.00010799,2]
[335561371,1724331039862,-500.0,0.00010799,2]
[335561372,1724331039872,-500.0,0.00010799,2]
[335561373,1724331039881,-500.0,0.00010799,2]
[335561374,1724331039890,-500.0,0.00010799,2]
[335561375,1724331039900,-500.0,0.00010799,2]
[335561376,1724331039910,-500.0,0.00010799,2]
[335561377,1724331039919,-500.0,0.00010799,2]
[335561378,1724331039929,-497.44148117,0.00010799,2]
[335561379,1724331039938,-500.0,0.00010799,2]
[335561380,1724331039947,-500.0,0.00010799,2]
[335561381,1724331039956,-500.0,0.00010799,2]
[335561382,1724331039965,-498.64130211,0.00010799,2]
[335561383,1724331039975,-500.0,0.00010799,2]
[335561384,1724331039984,-500.0,0.00010799,2]
[335561385,1724331039993,-500.0,0.00010799,2]
[335561386,1724331040003,-264.6,0.00010799,2]
[335561387,1724331040012,-500.0,0.00010799,2]
[335561388,1724331040021,-500.0,0.00010799,2]
[335561389,1724331040031,-500.0,0.00010799,2]
[335561390,1724331040040,-500.0,0.00010799,2]
[335561391,1724331040049,-256.31169398,0.00010799,2]
[335561392,1724331040075,-243.68830602,0.00010799,2]
[335561393,1724331040084,-500.0,0.00010799,2]
[335561394,1724331040093,-144.14185737,0.00010799,2]
[335561395,1724331040106,-355.85814263,0.00010799,2]
[335561396,1724331040115,-500.0,0.00010799,2]
[335561397,1724331040124,-335.55496658,0.00010799,2]
[335561398,1724331040139,-164.44503342,0.00010799,2]
[335561399,1724331040148,-500.0,0.00010799,2]
[335561400,1724331040157,-500.0,0.00010799,2]
[335561401,1724331040166,-500.0,0.00010799,2]
[335561402,1724331040175,-500.0,0.00010799,2]
[335561403,1724331040184,-500.0,0.00010799,2]
[335561404,1724331040194,-500.0,0.00010799,2]
[335561405,1724331040203,-500.0,0.00010799,2]
[335561406,1724331040212,-500.0,0.00010799,2]
[335561407,1724331040222,-523.05,0.00010799,2]
[335561408,1724331040231,-500.0,0.00010799,2]
[335561409,1724331040240,-475.68,0.00010799,2]
[335561410,1724331040250,-500.0,0.00010799,2]
[335561411,1724331040259,-500.0,0.00010799,2]
[335561412,1724331040269,-500.0,0.00010799,2]
[335561413,1724331040278,-500.0,0.00010799,2]
[335561414,1724331040287,-500.0,0.00010799,2]
[335561415,1724331040296,-500.0,0.00010799,2]
[335561416,1724331040309,-500.0,0.00010799,2]
[335561418,1724331040319,-500.0,0.00010799,2]
[335561419,1724331040328,-394.46940657,0.00010799,2]
[335561420,1724331040341,-105.53059343,0.00010799,2]
[335561421,1724331040352,-194.05738546,0.00010799,2]
[335561422,1724331040363,-267.64261454,0.00010799,2]
[335561423,1724331040372,-346.15,0.00010799,2]
[335561424,1724331040383,-500.0,0.00010799,2]
[335561425,1724331040392,-500.0,0.00010799,2]
[335561426,1724331040401,-500.0,0.00010799,2]
[335561427,1724331040414,-500.0,0.00010799,2]
[335561428,1724331040424,-51.67657667,0.00010799,2]
[335561429,1724331040443,-448.32342333,0.00010799,2]
[335561430,1724331040452,-549.32,0.00010799,2]
[335561431,1724331040461,-724.01,0.00010799,2]
[335561432,1724331040469,-724.01,0.00010799,2]
[335561433,1724331040478,-500.0,0.00010799,2]
[335561434,1724331040488,-1977.08,0.00010799,2]
[335561435,1724331040499,-724.01,0.00010799,2]
[335561436,1724331040508,-500.0,0.00010799,2]
[335561437,1724331040519,-1977.08,0.00010799,2]
[335561438,1724331040529,-724.01,0.00010799,2]
[335561439,1724331040539,-1583.10204775,0.00010799,2]
[335561440,1724331040552,-393.97795225,0.00010799,2]
[335561441,1724331040561,-724.01,0.00010799,2]
[335561442,1724331040570,-1977.08,0.00010799,2]
[335561443,1724331040579,-724.01,0.00010799,2]
[335561444,1724331040588,-1977.08,0.00010799,2]
[335561445,1724331040597,-724.01,0.00010799,2]
[335561446,1724331040605,-1977.08,0.00010799,2]
[335561447,1724331040614,-724.01,0.00010799,2]
[335561448,1724331040623,-1977.08,0.00010799,2]
[335561449,1724331040632,-724.01,0.00010799,2]
[335561450,1724331040642,-1977.08,0.00010799,2]
[335561451,1724331040651,-724.01,0.00010799,2]
[335561452,1724331040661,-438.4318256,0.00010799,2]
[335561453,1724331040674,-742.11629914,0.00010799,2]
[335561454,1724331040687,-277.0527081,0.00010799,2]
[335561455,1724331040699,-519.47916716,0.00010799,2]
[335561456,1724331040708,-724.01,0.00010799,2]
[335561457,1724331040717,-1977.08,0.00010799,2]
[335561458,1724331040727,-1977.08,0.00010799,2]
[335561459,1724331040736,-500.0,0.00010799,2]
[335561460,1724331040745,-1410.27706911,0.00010799,2]
[335561461,1724331040843,-1487.92434299,0.00010327,2]
[335561462,1724331040854,-387.72733961,0.00010327,2]
[335561463,1724331040865,-4905.37844259,0.00010327,2]
[335561464,1724331040877,-352.75909744,0.00010327,2]
[335561465,1724331040910,-342.108,0.00010327,2]
[335561466,1724331040930,-2524.10277737,0.00010327,2]
[335561467,1724331040939,-566.80293089,0.00010799,2]
[335561468,1724331040948,-500.0,0.00010799,2]
[335561469,1724331040957,-1977.08,0.00010799,2]
[335561470,1724331040966,-500.0,0.00010799,2]
[335561471,1724331040975,-1977.08,0.00010799,2]
[335561472,1724331040984,-500.0,0.00010799,2]
[335561473,1724331040994,-1977.08,0.00010799,2]
[335561474,1724331041004,-500.0,0.00010799,2]
[335561475,1724331041013,-1977.08,0.00010799,2]
[335561476,1724331041022,-1977.08,0.00010799,2]
[335561477,1724331041031,-500.0,0.00010799,2]
[335561478,1724331041041,-500.0,0.00010799,2]
[335561479,1724331041050,-1977.08,0.00010799,2]
[335561480,1724331041059,-353.2,0.00010799,2]
[335561481,1724331041068,-611.9736796,0.00010799,2]
[335561482,1724331041081,-1365.1063204,0.00010799,2]
[335561483,1724331041090,-517.76333824,0.00010799,2]
[335561484,1724331041102,-1459.31666176,0.00010799,2]
[335561485,1724331041111,-1977.08,0.00010799,2]
[335561486,1724331041121,-1977.08,0.00010799,2]
[335561487,1724331041130,-1492.52614305,0.00010799,2]
[335561488,1724331041142,-484.55385695,0.00010799,2]
[335561489,1724331041150,-962.53480676,0.00010799,2]
[335561490,1724331041162,-298.31412405,0.00010799,2]
[335561491,1724331041173,-337.374,0.00010799,2]
[335561492,1724331041189,-379.04904621,0.00010799,2]
[335561493,1724331041198,-500.0,0.00010799,2]
[335561494,1724331041207,-500.0,0.00010799,2]
[335561495,1724331041216,-500.0,0.00010799,2]
[335561496,1724331041225,-500.0,0.00010799,2]
[335561497,1724331041234,-500.0,0.00010799,2]
[335561498,1724331041243,-498.84281265,0.00010799,2]
[335561499,1724331041258,-1.15718735,0.00010799,2]
[335561500,1724331041267,-262.87781265,0.00010799,2]
[335561501,1724331041278,-237.12218735,0.00010799,2]
[335561502,1724331041288,-500.0,0.00010799,2]
[335561503,1724331041297,-500.0,0.00010799,2]
[335561504,1724331041310,-500.0,0.00010799,2]
[335561505,1724331041319,-500.0,0.00010799,2]
[335561506,1724331041328,-500.0,0.00010799,2]
[335561507,1724331041337,-500.0,0.00010799,2]
[335561508,1724331041347,-500.0,0.00010799,2]
[335561509,1724331041356,-500.0,0.00010799,2]
[335561510,1724331041365,-500.0,0.00010799,2]
[335561511,1724331041375,-500.0,0.00010799,2]
[335561512,1724331041385,-500.0,0.00010799,2]
[335561513,1724331041394,-500.0,0.00010799,2]
[335561514,1724331041404,-500.0,0.00010799,2]
[335561515,1724331041420,-500.0,0.00010799,2]
[335561516,1724331041429,-500.0,0.00010799,2]
[335561517,1724331041439,-500.0,0.00010799,2]
[335561518,1724331041448,-500.0,0.00010799,2]
[335561519,1724331041457,-500.0,0.00010799,2]
[335561520,1724331041466,-500.0,0.00010799,2]
[335561521,1724331041475,-500.0,0.00010799,2]
[335561522,1724331041485,-500.0,0.00010799,2]
[335561523,1724331041494,-500.0,0.00010799,2]
[335561524,1724331041503,-500.0,0.00010799,2]
[335561525,1724331041512,-469.02781265,0.00010799,2]
[335561530,1724331043314,-9389.935,0.00010327,2]
[335561531,1724331043324,-30.97218735,0.00010799,2]
[335561532,1724331043334,-500.0,0.00010799,2]
[335561533,1724331043345,-500.0,0.00010799,2]
[335561534,1724331043355,-500.0,0.00010799,2]
[335561535,1724331043364,-500.0,0.00010799,2]
[335561536,1724331043373,-500.0,0.00010799,2]
[335561537,1724331043385,-500.0,0.00010799,2]
[335561538,1724331043395,-500.0,0.00010799,2]
[335561539,1724331043406,-500.0,0.00010799,2]
[335561540,1724331043416,-500.0,0.00010799,2]
[335561541,1724331043425,-500.0,0.00010799,2]
[335561542,1724331043435,-500.0,0.00010799,2]
[335561543,1724331043445,-500.0,0.00010799,2]
[335561544,1724331043455,-500.0,0.00010799,2]
[335561545,1724331043463,-363.24,0.00010799,2]
[335561546,1724331043472,-500.0,0.00010799,2]
[335561547,1724331043481,-500.0,0.00010799,2]
[335561548,1724331043490,-500.0,0.00010799,2]
[335561549,1724331043499,-500.0,0.00010799,2]
[335561550,1724331043508,-500.0,0.00010799,2]
[335561551,1724331043517,-500.0,0.00010799,2]
[335561552,1724331043526,-500.0,0.00010799,2]
[335561553,1724331043535,-500.0,0.00010799,2]
[335561554,1724331043545,-500.0,0.00010799,2]
[335561555,1724331043554,-500.0,0.00010799,2]
[335561556,1724331043565,-500.0,0.00010799,2]
[335561557,1724331043575,-500.0,0.00010799,2]
[335561558,1724331043586,-500.0,0.00010799,2]
[335561559,1724331043595,-500.0,0.00010799,2]
[335561561,1724331043604,-500.0,0.00010799,2]
[335561562,1724331043614,-500.0,0.00010799,2]
[335561563,1724331043624,-500.0,0.00010799,2]
[335561564,1724331043633,-500.0,0.00010799,2]
[335561565,1724331043643,-500.0,0.00010799,2]
[335561566,1724331043652,-500.0,0.00010799,2]
[335561567,1724331043663,-500.0,0.00010799,2]
[335561569,1724331043679,-500.0,0.00010799,2]
[335561570,1724331043687,-500.0,0.00010799,2]
[335561571,1724331043697,-500.0,0.00010799,2]
[335561572,1724331043706,-500.0,0.00010799,2]
[335561576,1724331043715,-500.0,0.00010799,2]
[335561580,1724331043724,-500.0,0.00010799,2]
[335561584,1724331043733,-500.0,0.00010799,2]
[335561588,1724331043741,-500.0,0.00010799,2]
[335561589,1724331043750,-500.0,0.00010799,2]
[335561590,1724331043760,-500.0,0.00010799,2]
[335561591,1724331043769,-500.0,0.00010799,2]
[335561592,1724331043778,-500.0,0.00010799,2]
[335561593,1724331043787,-500.0,0.00010799,2]
[335561594,1724331043797,-183.55814619,0.00010799,2]
[335561595,1724331043806,-500.0,0.00010799,2]
[335561596,1724331043815,-500.0,0.00010799,2]
[335561597,1724331043824,-500.0,0.00010799,2]
[335561598,1724331043833,-500.0,0.00010799,2]
[335561599,1724331043842,-500.0,0.00010799,2]
[335561600,1724331043851,-500.0,0.00010799,2]
[335561601,1724331043860,-500.0,0.00010799,2]
[335561602,1724331043870,-500.0,0.00010799,2]
[335561603,1724331043879,-500.0,0.00010799,2]
[335561604,1724331043888,-500.0,0.00010799,2]
[335561605,1724331043897,-500.0,0.00010799,2]
[335561606,1724331043906,-543.12562889,0.00010799,2]
[335561607,1724331043917,-500.0,0.00010799,2]
[335561608,1724331043926,-362.3,0.00010799,2]
[335561609,1724331043935,-500.0,0.00010799,2]
[335561610,1724331043944,-500.0,0.00010799,2]
[335561611,1724331043954,-500.0,0.00010799,2]
[335561612,1724331043964,-500.0,0.00010799,2]
[335561613,1724331043973,-500.0,0.00010799,2]
[335561614,1724331043982,-513.24,0.00010799,2]
[335561615,1724331043991,-500.0,0.00010799,2]
[335561616,1724331044001,-500.0,0.00010799,2]
[335561617,1724331044010,-627.21281943,0.00010799,2]
[335561618,1724331044019,-1337.08,0.00010799,2]
[335561619,1724331044029,-1337.08,0.00010799,2]
[335561620,1724331044038,-1337.08,0.00010799,2]
[335561621,1724331044048,-1337.08,0.00010799,2]
[335561622,1724331044057,-1337.08,0.00010799,2]
[335561623,1724331044194,-1337.08,0.00010799,2]
[335561624,1724331044204,-1337.08,0.00010799,2]
[335561625,1724331044213,-1337.08,0.00010799,2]
[335561626,1724331044222,-1337.08,0.00010799,2]
[335561627,1724331044232,-500.0,0.00010799,2]
[335561628,1724331044241,-1337.08,0.00010799,2]
[335561629,1724331044250,-500.0,0.00010799,2]
[335561630,1724331044259,-1337.08,0.00010799,2]
[335561631,1724331044268,-500.0,0.00010799,2]
[335561632,1724331044278,-500.0,0.00010799,2]
[335561633,1724331044287,-500.0,0.00010799,2]
[335561634,1724331044299,-500.0,0.00010799,2]
[335561635,1724331044310,-500.0,0.00010799,2]
[335561636,1724331044319,-500.0,0.00010799,2]
[335561637,1724331044328,-500.0,0.00010799,2]
[335561638,1724331044337,-500.0,0.00010799,2]
[335561639,1724331044347,-500.0,0.00010799,2]
[335561640,1724331044356,-500.0,0.00010799,2]
[335561641,1724331044366,-500.0,0.00010799,2]
[335561642,1724331044379,-500.0,0.00010799,2]
[335561643,1724331044390,-500.0,0.00010799,2]
[335561644,1724331044400,-500.0,0.00010799,2]
[335561645,1724331044409,-500.0,0.00010799,2]
[335561646,1724331044419,-500.0,0.00010799,2]
[335561647,1724331044429,-500.0,0.00010799,2]
[335561648,1724331044439,-500.0,0.00010799,2]
[335561649,1724331044449,-500.0,0.00010799,2]
[335561650,1724331044459,-500.0,0.00010799,2]
[335561651,1724331044468,-500.0,0.00010799,2]
[335561652,1724331044478,-500.0,0.00010799,2]
[335561653,1724331044488,-500.0,0.00010799,2]
[335561654,1724331044497,-393.6,0.00010799,2]
[335561655,1724331044507,-500.0,0.00010799,2]
[335561656,1724331044516,-237.26339065,0.00010799,2]
[335561657,1724331044526,-500.0,0.00010799,2]
[335561658,1724331044535,-500.0,0.00010799,2]
[335561659,1724331044544,-500.0,0.00010799,2]
[335561660,1724331044554,-500.0,0.00010799,2]
[335561661,1724331044564,-500.0,0.00010799,2]
[335561662,1724331044573,-1780.8,0.00010799,2]
[335561663,1724331044582,-1780.8,0.00010799,2]
[335561664,1724331044591,-500.0,0.00010799,2]
[335561665,1724331044600,-500.0,0.00010799,2]
[335561666,1724331044609,-1780.8,0.00010799,2]
[335561667,1724331044618,-500.0,0.00010799,2]
[335561668,1724331044628,-1780.8,0.00010799,2]
[335561669,1724331044638,-500.0,0.00010799,2]
[335561670,1724331044647,-1780.8,0.00010799,2]
[335561671,1724331044656,-1780.8,0.00010799,2]
[335561672,1724331044667,-500.0,0.00010799,2]
[335561673,1724331044676,-1780.8,0.00010799,2]
[335561674,1724331044686,-500.0,0.00010799,2]
[335561675,1724331044695,-1780.8,0.00010799,2]
[335561676,1724331044705,-1780.8,0.00010799,2]
[335561677,1724331044714,-1140.68989077,0.00010799,2]
[335561678,1724331044740,-320.26401847,0.00010799,2]
[335561679,1724331044753,-319.84609076,0.00010799,2]
[335561680,1724331044763,-482.21731083,0.00010799,2]
[335561681,1724331044775,-357.36375668,0.00010799,2]
[335561682,1724331044787,-941.21893249,0.00010799,2]
[335561683,1724331044796,-1780.8,0.00010799,2]
[335561684,1724331044806,-1196.77214801,0.00010799,2]
[335561685,1724331044818,-584.02785199,0.00010799,2]
[335561686,1724331044828,-1379.92838452,0.00010799,2]
[335561687,1724331045279,-400.87161548,0.00010799,2]
[335561688,1724331045290,-500.0,0.00010799,2]
[335561689,1724331045303,-446.95365473,0.00010799,2]
[335561690,1724331046255,-346.76974357,0.00010799,2]
[335561691,1724331046267,-218.23025643,0.00010799,2]
[335561692,1724331046276,-631.76974357,0.00010799,2]
[335561693,1724331046314,-432.77116256,0.00010799,2]
[335561694,1724331046374,-269.30543914,0.00010799,2]
[335561695,1724331046384,-15.00646403,0.00010799,2]
[335561696,1724331046397,-484.99353597,0.00010799,2]
[335561697,1724331046408,-1780.8,0.00010799,2]
[335561698,1724331046418,-500.0,0.00010799,2]
[335561699,1724331046429,-1780.8,0.00010799,2]
[335561700,1724331046439,-7.22548533,0.00010799,2]
[335561701,1724331046451,-492.77451467,0.00010799,2]
[335561702,1724331046462,-276.07548533,0.00010799,2]